Workbook

Sheet Revenues (sales)
B2: COMPANY NAME
B4: PROFIT & LOSS PROJECTION
B6: REVENUES (SALES) | C6: TREND | D6: JAN | E6: FEB | F6: MAR | G6: APR | H6: MAY | I6: JUN | J6: JUL | K6: AUG | L6: SEP | M6: OCT | N6: NOV | O6: DEC | P6: YEARLY | Q6: IND % | R6: JAN % | S6: FEB % | T6: MAR % | U6: APR % | V6: MAY % | W6: JUN % | X6: JUL % | Y6: AUG % | Z6: SEP % | AA6: OCT % | AB6: NOV % | AC6: DEC % | AD6: YEAR %
B7: Revenue 1 | D7: $186.00 | E7: $108.00 | F7: $92.00 | G7: $122.00 | H7: $190.00 | I7: $71.00 | J7: $21.00 | K7: $37.00 | L7: $24.00 | M7: $178.00 | N7: $92.00 | O7: $97.00 | P7: =SUM(Revenue[[#This Row],[JAN]:[DEC]]) -> $1,218.00 | Q7: 12% | R7: =IFERROR(Revenue[[#This Row],[JAN]]/Revenue[[#Totals],[JAN]],"-") -> 30% | S7: =IFERROR(Revenue[[#This Row],[FEB]]/Revenue[[#Totals],[FEB]],"-") -> 15% | T7: =IFERROR(Revenue[[#This Row],[MAR]]/Revenue[[#Totals],[MAR]],"-") -> 11% | U7: =IFERROR(Revenue[[#This Row],[APR]]/Revenue[[#Totals],[APR]],"-") -> 20% | V7: =IFERROR(Revenue[[#This Row],[MAY]]/Revenue[[#Totals],[MAY]],"-") -> 23% | W7: =IFERROR(Revenue[[#This Row],[JUN]]/Revenue[[#Totals],[JUN]],"-") -> 12% | X7: =IFERROR(Revenue[[#This Row],[JUL]]/Revenue[[#Totals],[JUL]],"-") -> 4% | Y7: =IFERROR(Revenue[[#This Row],[AUG]]/Revenue[[#Totals],[AUG]],"-") -> 5% | Z7: =IFERROR(Revenue[[#This Row],[SEP]]/Revenue[[#Totals],[SEP]],"-") -> 3% | AA7: =IFERROR(Revenue[[#This Row],[OCT]]/Revenue[[#Totals],[OCT]],"-") -> 26% | AB7: =IFERROR(Revenue[[#This Row],[NOV]]/Revenue[[#Totals],[NOV]],"-") -> 12% | AC7: =IFERROR(Revenue[[#This Row],[DEC]]/Revenue[[#Totals],[DEC]],"-") -> 9% | AD7: =IFERROR(Revenue[[#This Row],[YEARLY]]/Revenue[[#Totals],[YEARLY]],"-") -> 14%
B8: Revenue 2 | D8: $15.00 | E8: $16.00 | F8: $198.00 | G8: $44.00 | H8: $25.00 | I8: $68.00 | J8: $43.00 | K8: $119.00 | L8: $37.00 | M8: $118.00 | N8: $29.00 | O8: $171.00 | P8: =SUM(Revenue[[#This Row],[JAN]:[DEC]]) -> $883.00 | Q8: 18% | R8: =IFERROR(Revenue[[#This Row],[JAN]]/Revenue[[#Totals],[JAN]],"-") -> 2% | S8: =IFERROR(Revenue[[#This Row],[FEB]]/Revenue[[#Totals],[FEB]],"-") -> 2% | T8: =IFERROR(Revenue[[#This Row],[MAR]]/Revenue[[#Totals],[MAR]],"-") -> 24% | U8: =IFERROR(Revenue[[#This Row],[APR]]/Revenue[[#Totals],[APR]],"-") -> 7% | V8: =IFERROR(Revenue[[#This Row],[MAY]]/Revenue[[#Totals],[MAY]],"-") -> 3% | W8: =IFERROR(Revenue[[#This Row],[JUN]]/Revenue[[#Totals],[JUN]],"-") -> 12% | X8: =IFERROR(Revenue[[#This Row],[JUL]]/Revenue[[#Totals],[JUL]],"-") -> 7% | Y8: =IFERROR(Revenue[[#This Row],[AUG]]/Revenue[[#Totals],[AUG]],"-") -> 18% | Z8: =IFERROR(Revenue[[#This Row],[SEP]]/Revenue[[#Totals],[SEP]],"-") -> 5% | AA8: =IFERROR(Revenue[[#This Row],[OCT]]/Revenue[[#Totals],[OCT]],"-") -> 17% | AB8: =IFERROR(Revenue[[#This Row],[NOV]]/Revenue[[#Totals],[NOV]],"-") -> 4% | AC8: =IFERROR(Revenue[[#This Row],[DEC]]/Revenue[[#Totals],[DEC]],"-") -> 16% | AD8: =IFERROR(Revenue[[#This Row],[YEARLY]]/Revenue[[#Totals],[YEARLY]],"-") -> 10%
B9: Revenue 3 | D9: $166.00 | E9: $185.00 | F9: $89.00 | G9: $170.00 | H9: $131.00 | I9: $70.00 | J9: $50.00 | K9: $149.00 | L9: $179.00 | M9: $104.00 | N9: $119.00 | O9: $187.00 | P9: =SUM(Revenue[[#This Row],[JAN]:[DEC]]) -> $1,599.00 | Q9: 19% | R9: =IFERROR(Revenue[[#This Row],[JAN]]/Revenue[[#Totals],[JAN]],"-") -> 27% | S9: =IFERROR(Revenue[[#This Row],[FEB]]/Revenue[[#Totals],[FEB]],"-") -> 25% | T9: =IFERROR(Revenue[[#This Row],[MAR]]/Revenue[[#Totals],[MAR]],"-") -> 11% | U9: =IFERROR(Revenue[[#This Row],[APR]]/Revenue[[#Totals],[APR]],"-") -> 28% | V9: =IFERROR(Revenue[[#This Row],[MAY]]/Revenue[[#Totals],[MAY]],"-") -> 16% | W9: =IFERROR(Revenue[[#This Row],[JUN]]/Revenue[[#Totals],[JUN]],"-") -> 12% | X9: =IFERROR(Revenue[[#This Row],[JUL]]/Revenue[[#Totals],[JUL]],"-") -> 8% | Y9: =IFERROR(Revenue[[#This Row],[AUG]]/Revenue[[#Totals],[AUG]],"-") -> 22% | Z9: =IFERROR(Revenue[[#This Row],[SEP]]/Revenue[[#Totals],[SEP]],"-") -> 24% | AA9: =IFERROR(Revenue[[#This Row],[OCT]]/Revenue[[#Totals],[OCT]],"-") -> 15% | AB9: =IFERROR(Revenue[[#This Row],[NOV]]/Revenue[[#Totals],[NOV]],"-") -> 16% | AC9: =IFERROR(Revenue[[#This Row],[DEC]]/Revenue[[#Totals],[DEC]],"-") -> 18% | AD9: =IFERROR(Revenue[[#This Row],[YEARLY]]/Revenue[[#Totals],[YEARLY]],"-") -> 18%
B10: Revenue 4 | D10: $21.00 | E10: $113.00 | F10: $83.00 | G10: $17.00 | H10: $130.00 | I10: $26.00 | J10: $167.00 | K10: $102.00 | L10: $82.00 | M10: $33.00 | N10: $88.00 | O10: $193.00 | P10: =SUM(Revenue[[#This Row],[JAN]:[DEC]]) -> $1,055.00 | Q10: 11% | R10: =IFERROR(Revenue[[#This Row],[JAN]]/Revenue[[#Totals],[JAN]],"-") -> 3% | S10: =IFERROR(Revenue[[#This Row],[FEB]]/Revenue[[#Totals],[FEB]],"-") -> 15% | T10: =IFERROR(Revenue[[#This Row],[MAR]]/Revenue[[#Totals],[MAR]],"-") -> 10% | U10: =IFERROR(Revenue[[#This Row],[APR]]/Revenue[[#Totals],[APR]],"-") -> 3% | V10: =IFERROR(Revenue[[#This Row],[MAY]]/Revenue[[#Totals],[MAY]],"-") -> 16% | W10: =IFERROR(Revenue[[#This Row],[JUN]]/Revenue[[#Totals],[JUN]],"-") -> 4% | X10: =IFERROR(Revenue[[#This Row],[JUL]]/Revenue[[#Totals],[JUL]],"-") -> 28% | Y10: =IFERROR(Revenue[[#This Row],[AUG]]/Revenue[[#Totals],[AUG]],"-") -> 15% | Z10: =IFERROR(Revenue[[#This Row],[SEP]]/Revenue[[#Totals],[SEP]],"-") -> 11% | AA10: =IFERROR(Revenue[[#This Row],[OCT]]/Revenue[[#Totals],[OCT]],"-") -> 5% | AB10: =IFERROR(Revenue[[#This Row],[NOV]]/Revenue[[#Totals],[NOV]],"-") -> 12% | AC10: =IFERROR(Revenue[[#This Row],[DEC]]/Revenue[[#Totals],[DEC]],"-") -> 19% | AD10: =IFERROR(Revenue[[#This Row],[YEARLY]]/Revenue[[#Totals],[YEARLY]],"-") -> 12%
B11: Revenue 5 | D11: $70.00 | E11: $160.00 | F11: $125.00 | G11: $84.00 | H11: $191.00 | I11: $97.00 | J11: $52.00 | K11: $45.00 | L11: $173.00 | M11: $136.00 | N11: $144.00 | O11: $167.00 | P11: =SUM(Revenue[[#This Row],[JAN]:[DEC]]) -> $1,444.00 | Q11: 20% | R11: =IFERROR(Revenue[[#This Row],[JAN]]/Revenue[[#Totals],[JAN]],"-") -> 11% | S11: =IFERROR(Revenue[[#This Row],[FEB]]/Revenue[[#Totals],[FEB]],"-") -> 22% | T11: =IFERROR(Revenue[[#This Row],[MAR]]/Revenue[[#Totals],[MAR]],"-") -> 15% | U11: =IFERROR(Revenue[[#This Row],[APR]]/Revenue[[#Totals],[APR]],"-") -> 14% | V11: =IFERROR(Revenue[[#This Row],[MAY]]/Revenue[[#Totals],[MAY]],"-") -> 24% | W11: =IFERROR(Revenue[[#This Row],[JUN]]/Revenue[[#Totals],[JUN]],"-") -> 17% | X11: =IFERROR(Revenue[[#This Row],[JUL]]/Revenue[[#Totals],[JUL]],"-") -> 9% | Y11: =IFERROR(Revenue[[#This Row],[AUG]]/Revenue[[#Totals],[AUG]],"-") -> 7% | Z11: =IFERROR(Revenue[[#This Row],[SEP]]/Revenue[[#Totals],[SEP]],"-") -> 23% | AA11: =IFERROR(Revenue[[#This Row],[OCT]]/Revenue[[#Totals],[OCT]],"-") -> 20% | AB11: =IFERROR(Revenue[[#This Row],[NOV]]/Revenue[[#Totals],[NOV]],"-") -> 19% | AC11: =IFERROR(Revenue[[#This Row],[DEC]]/Revenue[[#Totals],[DEC]],"-") -> 16% | AD11: =IFERROR(Revenue[[#This Row],[YEARLY]]/Revenue[[#Totals],[YEARLY]],"-") -> 17%
B12: Revenue 6 | D12: $61.00 | E12: $99.00 | F12: $70.00 | G12: $162.00 | H12: $28.00 | I12: $163.00 | J12: $101.00 | K12: $103.00 | L12: $78.00 | M12: $33.00 | N12: $162.00 | O12: $159.00 | P12: =SUM(Revenue[[#This Row],[JAN]:[DEC]]) -> $1,219.00 | Q12: 10% | R12: =IFERROR(Revenue[[#This Row],[JAN]]/Revenue[[#Totals],[JAN]],"-") -> 10% | S12: =IFERROR(Revenue[[#This Row],[FEB]]/Revenue[[#Totals],[FEB]],"-") -> 13% | T12: =IFERROR(Revenue[[#This Row],[MAR]]/Revenue[[#Totals],[MAR]],"-") -> 9% | U12: =IFERROR(Revenue[[#This Row],[APR]]/Revenue[[#Totals],[APR]],"-") -> 27% | V12: =IFERROR(Revenue[[#This Row],[MAY]]/Revenue[[#Totals],[MAY]],"-") -> 3% | W12: =IFERROR(Revenue[[#This Row],[JUN]]/Revenue[[#Totals],[JUN]],"-") -> 28% | X12: =IFERROR(Revenue[[#This Row],[JUL]]/Revenue[[#Totals],[JUL]],"-") -> 17% | Y12: =IFERROR(Revenue[[#This Row],[AUG]]/Revenue[[#Totals],[AUG]],"-") -> 15% | Z12: =IFERROR(Revenue[[#This Row],[SEP]]/Revenue[[#Totals],[SEP]],"-") -> 10% | AA12: =IFERROR(Revenue[[#This Row],[OCT]]/Revenue[[#Totals],[OCT]],"-") -> 5% | AB12: =IFERROR(Revenue[[#This Row],[NOV]]/Revenue[[#Totals],[NOV]],"-") -> 22% | AC12: =IFERROR(Revenue[[#This Row],[DEC]]/Revenue[[#Totals],[DEC]],"-") -> 15% | AD12: =IFERROR(Revenue[[#This Row],[YEARLY]]/Revenue[[#Totals],[YEARLY]],"-") -> 14%
B13: Revenue 7 | D13: $105.00 | E13: $55.00 | F13: $163.00 | G13: $12.00 | H13: $117.00 | I13: $83.00 | J13: $163.00 | K13: $120.00 | L13: $171.00 | M13: $79.00 | N13: $105.00 | O13: $69.00 | P13: =SUM(Revenue[[#This Row],[JAN]:[DEC]]) -> $1,242.00 | Q13: 10% | R13: =IFERROR(Revenue[[#This Row],[JAN]]/Revenue[[#Totals],[JAN]],"-") -> 17% | S13: =IFERROR(Revenue[[#This Row],[FEB]]/Revenue[[#Totals],[FEB]],"-") -> 7% | T13: =IFERROR(Revenue[[#This Row],[MAR]]/Revenue[[#Totals],[MAR]],"-") -> 20% | U13: =IFERROR(Revenue[[#This Row],[APR]]/Revenue[[#Totals],[APR]],"-") -> 2% | V13: =IFERROR(Revenue[[#This Row],[MAY]]/Revenue[[#Totals],[MAY]],"-") -> 14% | W13: =IFERROR(Revenue[[#This Row],[JUN]]/Revenue[[#Totals],[JUN]],"-") -> 14% | X13: =IFERROR(Revenue[[#This Row],[JUL]]/Revenue[[#Totals],[JUL]],"-") -> 27% | Y13: =IFERROR(Revenue[[#This Row],[AUG]]/Revenue[[#Totals],[AUG]],"-") -> 18% | Z13: =IFERROR(Revenue[[#This Row],[SEP]]/Revenue[[#Totals],[SEP]],"-") -> 23% | AA13: =IFERROR(Revenue[[#This Row],[OCT]]/Revenue[[#Totals],[OCT]],"-") -> 12% | AB13: =IFERROR(Revenue[[#This Row],[NOV]]/Revenue[[#Totals],[NOV]],"-") -> 14% | AC13: =IFERROR(Revenue[[#This Row],[DEC]]/Revenue[[#Totals],[DEC]],"-") -> 7% | AD13: =IFERROR(Revenue[[#This Row],[YEARLY]]/Revenue[[#Totals],[YEARLY]],"-") -> 14%
B14: TOTAL SALES | D14: =SUBTOTAL(109,Revenue[JAN]) -> $624.00 | E14: =SUBTOTAL(109,Revenue[FEB]) -> $736.00 | F14: =SUBTOTAL(109,Revenue[MAR]) -> $820.00 | G14: =SUBTOTAL(109,Revenue[APR]) -> $611.00 | H14: =SUBTOTAL(109,Revenue[MAY]) -> $812.00 | I14: =SUBTOTAL(109,Revenue[JUN]) -> $578.00 | J14: =SUBTOTAL(109,Revenue[JUL]) -> $597.00 | K14: =SUBTOTAL(109,Revenue[AUG]) -> $675.00 | L14: =SUBTOTAL(109,Revenue[SEP]) -> $744.00 | M14: =SUBTOTAL(109,Revenue[OCT]) -> $681.00 | N14: =SUBTOTAL(109,Revenue[NOV]) -> $739.00 | O14: =SUBTOTAL(109,Revenue[DEC]) -> $1,043.00 | P14: =SUBTOTAL(109,Revenue[YEARLY]) -> $8,660.00 | Q14: =SUBTOTAL(109,Revenue[IND %]) -> 100% | R14: =SUBTOTAL(109,Revenue[JAN %]) -> 100% | S14: =SUBTOTAL(109,Revenue[FEB %]) -> 100% | T14: =SUBTOTAL(109,Revenue[MAR %]) -> 100% | U14: =SUBTOTAL(109,Revenue[APR %]) -> 100% | V14: =SUBTOTAL(109,Revenue[MAY %]) -> 100% | W14: =SUBTOTAL(109,Revenue[JUN %]) -> 100% | X14: =SUBTOTAL(109,Revenue[JUL %]) -> 100% | Y14: =SUBTOTAL(109,Revenue[AUG %]) -> 100% | Z14: =SUBTOTAL(109,Revenue[SEP %]) -> 100% | AA14: =SUBTOTAL(109,Revenue[OCT %]) -> 100% | AB14: =SUBTOTAL(109,Revenue[NOV %]) -> 100% | AC14: =SUBTOTAL(109,Revenue[DEC %]) -> 100% | AD14: =SUBTOTAL(109,Revenue[YEAR %]) -> 100%

Sheet Cost of sales
B2: =Company_Name -> COMPANY NAME
B4: =Wksht_Title -> PROFIT & LOSS PROJECTION
B6: COST OF SALES | C6: TREND | D6: JAN | E6: FEB | F6: MAR | G6: APR | H6: MAY | I6: JUN | J6: JUL | K6: AUG | L6: SEP | M6: OCT | N6: NOV | O6: DEC | P6: YEARLY | Q6: IND % | R6: JAN % | S6: FEB % | T6: MAR % | U6: APR % | V6: MAY % | W6: JUN % | X6: JUL % | Y6: AUG % | Z6: SEP % | AA6: OCT % | AB6: NOV % | AC6: DEC % | AD6: YEAR %
B7: Cost 1 | D7: $61.00 | E7: $78.00 | F7: $65.00 | G7: $29.00 | H7: $125.00 | I7: $49.00 | J7: $14.00 | K7: $26.00 | L7: $14.00 | M7: $129.00 | N7: $60.00 | O7: $65.00 | P7: =SUM(CostofSales[[#This Row],[JAN]:[DEC]]) -> $715.00 | Q7: 12% | R7: =D7/D$14 -> 23% | S7: 22% | T7: 21% | U7: 12% | V7: 31% | W7: 16% | X7: 5% | Y7: 12% | Z7: 3% | AA7: 47% | AB7: 23% | AC7: 14% | AD7: 19%
B8: Cost 2 | D8: $7.00 | E8: $5.00 | F8: $69.00 | G8: $32.00 | H8: $11.00 | I8: $30.00 | J8: $27.00 | K8: $32.00 | L8: $10.00 | M8: $41.00 | N8: $13.00 | O8: $105.00 | P8: =SUM(CostofSales[[#This Row],[JAN]:[DEC]]) -> $382.00 | Q8: 18% | R8: 3% | S8: 1% | T8: 22% | U8: 13% | V8: 3% | W8: 10% | X8: 9% | Y8: 14% | Z8: 2% | AA8: 15% | AB8: 5% | AC8: 23% | AD8: 10%
B9: Cost 3 | D9: $99.00 | E9: $95.00 | F9: $51.00 | G9: $90.00 | H9: $21.00 | I9: $34.00 | J9: $30.00 | K9: $24.00 | L9: $109.00 | M9: $16.00 | N9: $21.00 | O9: $52.00 | P9: =SUM(CostofSales[[#This Row],[JAN]:[DEC]]) -> $642.00 | Q9: 19% | R9: 37% | S9: 27% | T9: 16% | U9: 37% | V9: 5% | W9: 11% | X9: 10% | Y9: 11% | Z9: 26% | AA9: 6% | AB9: 8% | AC9: 11% | AD9: 17%
B10: Cost 4 | D10: $13.00 | E10: $28.00 | F10: $15.00 | G10: $8.00 | H10: $84.00 | I10: $12.00 | J10: $54.00 | K10: $72.00 | L10: $49.00 | M10: $24.00 | N10: $60.00 | O10: $39.00 | P10: =SUM(CostofSales[[#This Row],[JAN]:[DEC]]) -> $458.00 | Q10: 11% | R10: 5% | S10: 8% | T10: 5% | U10: 3% | V10: 21% | W10: 4% | X10: 18% | Y10: 32% | Z10: 12% | AA10: 9% | AB10: 23% | AC10: 9% | AD10: 12%
B11: Cost 5 | D11: $34.00 | E11: $78.00 | F11: $43.00 | G11: $30.00 | H11: $77.00 | I11: $54.00 | J11: $26.00 | K11: $13.00 | L11: $56.00 | M11: $30.00 | N11: $40.00 | O11: $63.00 | P11: =SUM(CostofSales[[#This Row],[JAN]:[DEC]]) -> $544.00 | Q11: 20% | R11: 13% | S11: 22% | T11: 14% | U11: 12% | V11: 19% | W11: 17% | X11: 9% | Y11: 6% | Z11: 14% | AA11: 11% | AB11: 15% | AC11: 14% | AD11: 14%
B12: Cost 6 | D12: $33.00 | E12: $61.00 | F12: $42.00 | G12: $43.00 | H12: $19.00 | I12: $94.00 | J12: $46.00 | K12: $15.00 | L12: $55.00 | M12: $15.00 | N12: $37.00 | O12: $89.00 | P12: =SUM(CostofSales[[#This Row],[JAN]:[DEC]]) -> $549.00 | Q12: 10% | R12: 12% | S12: 17% | T12: 13% | U12: 18% | V12: 5% | W12: 30% | X12: 15% | Y12: 7% | Z12: 13% | AA12: 5% | AB12: 14% | AC12: 20% | AD12: 14%
B13: Cost 7 | D13: $18.00 | E13: $11.00 | F13: $30.00 | G13: $9.00 | H13: $62.00 | I13: $39.00 | J13: $102.00 | K13: $44.00 | L13: $121.00 | M13: $19.00 | N13: $33.00 | O13: $40.00 | P13: =SUM(CostofSales[[#This Row],[JAN]:[DEC]]) -> $528.00 | Q13: 10% | R13: 7% | S13: 3% | T13: 10% | U13: 4% | V13: 16% | W13: 13% | X13: 34% | Y13: 19% | Z13: 29% | AA13: 7% | AB13: 13% | AC13: 9% | AD13: 14%
B14: TOTAL COST OF SALES | D14: =SUM(D7:D13) -> $265.00 | E14: $356.00 | F14: $315.00 | G14: $241.00 | H14: $399.00 | I14: $312.00 | J14: $299.00 | K14: $226.00 | L14: $414.00 | M14: $274.00 | N14: $264.00 | O14: $453.00 | P14: =SUM(CostofSales[[#This Row],[JAN]:[DEC]]) -> $3,818.00 | Q14: =SUM(Q7:Q13) -> 100% | R14: 100% | S14: 100% | T14: 100% | U14: 100% | V14: 100% | W14: 100% | X14: 100% | Y14: 100% | Z14: 100% | AA14: 100% | AB14: 100% | AC14: 100% | AD14: 100%
B15: GROSS PROFIT | D15: ='Revenues (sales)'!D14-D14 -> $359.00 | E15: ='Revenues (sales)'!E14-E14 -> $380.00 | F15: ='Revenues (sales)'!F14-F14 -> $505.00 | G15: ='Revenues (sales)'!G14-G14 -> $370.00 | H15: ='Revenues (sales)'!H14-H14 -> $413.00 | I15: ='Revenues (sales)'!I14-I14 -> $266.00 | J15: ='Revenues (sales)'!J14-J14 -> $298.00 | K15: ='Revenues (sales)'!K14-K14 -> $449.00 | L15: ='Revenues (sales)'!L14-L14 -> $330.00 | M15: ='Revenues (sales)'!M14-M14 -> $407.00 | N15: ='Revenues (sales)'!N14-N14 -> $475.00 | O15: ='Revenues (sales)'!O14-O14 -> $590.00 | P15: ='Revenues (sales)'!P14-P14 -> $4,842.00

Sheet Expenses
B2: =Company_Name -> COMPANY NAME
B4: =Wksht_Title -> PROFIT & LOSS PROJECTION
B6: EXPENSES | C6: TREND | D6: JAN | E6: FEB | F6: MAR | G6: APR | H6: MAY | I6: JUN | J6: JUL | K6: AUG | L6: SEP | M6: OCT | N6: NOV | O6: DEC | P6: YEARLY | Q6: IND % | R6: JAN % | S6: FEB % | T6: MAR % | U6: APR % | V6: MAY % | W6: JUN % | X6: JUL % | Y6: AUG % | Z6: SEP % | AA6: OCT % | AB6: NOV % | AC6: DEC % | AD6: YEAR %
B7: Salary expenses | D7: $10.00 | E7: $18.00 | F7: $13.00 | G7: $8.00 | H7: $22.00 | I7: $18.00 | J7: $8.00 | K7: $17.00 | L7: $20.00 | M7: $8.00 | N7: $4.00 | O7: $12.00 | P7: =SUM(tblExpenses[[#This Row],[JAN]:[DEC]]) -> $158.00 | Q7: 12% | R7: =D7/D$26 -> 4% | S7: =E7/E$26 -> 9% | T7: =F7/F$26 -> 5% | U7: =G7/G$26 -> 3% | V7: =H7/H$26 -> 9% | W7: =I7/I$26 -> 7% | X7: =J7/J$26 -> 3% | Y7: =K7/K$26 -> 7% | Z7: =L7/L$26 -> 9% | AA7: =M7/M$26 -> 3% | AB7: =N7/N$26 -> 1% | AC7: =O7/O$26 -> 5% | AD7: =P7/P$26 -> 5%
B8: Payroll expenses | D8: $23.00 | E8: $11.00 | F8: $7.00 | G8: $14.00 | H8: $12.00 | I8: $19.00 | J8: $19.00 | K8: $4.00 | L8: $7.00 | M8: $13.00 | N8: $25.00 | O8: $5.00 | P8: =SUM(tblExpenses[[#This Row],[JAN]:[DEC]]) -> $159.00 | Q8: 9% | R8: 10% | S8: 5% | T8: 3% | U8: 5% | V8: 5% | W8: 7% | X8: 7% | Y8: 2% | Z8: 3% | AA8: 5% | AB8: 8% | AC8: 2% | AD8: 5%
B9: Outside services | D9: $23.00 | E9: $20.00 | F9: $3.00 | G9: $16.00 | H9: $10.00 | I9: $5.00 | J9: $20.00 | K9: $7.00 | L9: $4.00 | M9: $22.00 | N9: $13.00 | O9: $14.00 | P9: =SUM(tblExpenses[[#This Row],[JAN]:[DEC]]) -> $157.00 | Q9: 2% | R9: 10% | S9: 10% | T9: 1% | U9: 6% | V9: 4% | W9: 2% | X9: 8% | Y9: 3% | Z9: 2% | AA9: 8% | AB9: 4% | AC9: 6% | AD9: 5%
B10: Supplies (office and operating) | D10: $19.00 | E10: $4.00 | F10: $7.00 | G10: $14.00 | H10: $22.00 | I10: $10.00 | J10: $22.00 | K10: $5.00 | L10: $4.00 | M10: $12.00 | N10: $18.00 | O10: $24.00 | P10: =SUM(tblExpenses[[#This Row],[JAN]:[DEC]]) -> $161.00 | Q10: 8% | R10: 8% | S10: 2% | T10: 3% | U10: 5% | V10: 9% | W10: 4% | X10: 8% | Y10: 2% | Z10: 2% | AA10: 5% | AB10: 6% | AC10: 10% | AD10: 5%
B11: Repairs and maintenance | D11: $11.00 | E11: $11.00 | F11: $17.00 | G11: $12.00 | H11: $2.00 | I11: $14.00 | J11: $12.00 | K11: $10.00 | L11: $18.00 | M11: $11.00 | N11: $23.00 | O11: $11.00 | P11: =SUM(tblExpenses[[#This Row],[JAN]:[DEC]]) -> $152.00 | Q11: 3% | R11: 5% | S11: 5% | T11: 7% | U11: 5% | V11: 1% | W11: 5% | X11: 5% | Y11: 4% | Z11: 8% | AA11: 4% | AB11: 8% | AC11: 5% | AD11: 5%
B12: Advertising | D12: $2.00 | E12: $16.00 | F12: $6.00 | G12: $13.00 | H12: $11.00 | I12: $22.00 | J12: $21.00 | K12: $3.00 | L12: $12.00 | M12: $7.00 | N12: $17.00 | O12: $20.00 | P12: =SUM(tblExpenses[[#This Row],[JAN]:[DEC]]) -> $150.00 | Q12: 15% | R12: 1% | S12: 8% | T12: 2% | U12: 5% | V12: 4% | W12: 8% | X12: 8% | Y12: 1% | Z12: 5% | AA12: 3% | AB12: 6% | AC12: 9% | AD12: 5%
B13: Car, delivery and travel | D13: $8.00 | E13: $17.00 | F13: $11.00 | G13: $11.00 | H13: $21.00 | I13: $9.00 | J13: $20.00 | K13: $3.00 | L13: $14.00 | M13: $22.00 | N13: $16.00 | O13: $12.00 | P13: =SUM(tblExpenses[[#This Row],[JAN]:[DEC]]) -> $164.00 | Q13: 12% | R13: 3% | S13: 8% | T13: 4% | U13: 4% | V13: 8% | W13: 3% | X13: 8% | Y13: 1% | Z13: 6% | AA13: 8% | AB13: 5% | AC13: 5% | AD13: 5%
B14: Accounting and legal | D14: $5.00 | E14: $13.00 | F14: $6.00 | G14: $15.00 | H14: $19.00 | I14: $10.00 | J14: $12.00 | K14: $9.00 | L14: $15.00 | M14: $16.00 | N14: $4.00 | O14: $9.00 | P14: =SUM(tblExpenses[[#This Row],[JAN]:[DEC]]) -> $133.00 | Q14: 9% | R14: 2% | S14: 6% | T14: 2% | U14: 6% | V14: 7% | W14: 4% | X14: 5% | Y14: 4% | Z14: 7% | AA14: 6% | AB14: 1% | AC14: 4% | AD14: 4%
B15: Rent | D15: $8.00 | E15: $4.00 | F15: $23.00 | G15: $25.00 | H15: $10.00 | I15: $24.00 | J15: $22.00 | K15: $5.00 | L15: $12.00 | M15: $24.00 | N15: $24.00 | O15: $12.00 | P15: =SUM(tblExpenses[[#This Row],[JAN]:[DEC]]) -> $193.00 | Q15: 1% | R15: 3% | S15: 2% | T15: 9% | U15: 10% | V15: 4% | W15: 9% | X15: 8% | Y15: 2% | Z15: 5% | AA15: 9% | AB15: 8% | AC15: 5% | AD15: 6%
B16: Telephone | D16: $25.00 | E16: $2.00 | F16: $12.00 | G16: $25.00 | H16: $10.00 | I16: $24.00 | J16: $3.00 | K16: $20.00 | L16: $3.00 | M16: $9.00 | N16: $20.00 | O16: $18.00 | P16: =SUM(tblExpenses[[#This Row],[JAN]:[DEC]]) -> $171.00 | Q16: 1% | R16: 11% | S16: 1% | T16: 5% | U16: 10% | V16: 4% | W16: 9% | X16: 1% | Y16: 9% | Z16: 1% | AA16: 3% | AB16: 7% | AC16: 8% | AD16: 6%
B17: Utilities | D17: $16.00 | E17: $19.00 | F17: $9.00 | G17: $16.00 | H17: $13.00 | I17: $2.00 | J17: $4.00 | K17: $24.00 | L17: $16.00 | M17: $22.00 | N17: $7.00 | O17: $18.00 | P17: =SUM(tblExpenses[[#This Row],[JAN]:[DEC]]) -> $166.00 | Q17: 1% | R17: 7% | S17: 9% | T17: 4% | U17: 6% | V17: 5% | W17: 1% | X17: 2% | Y17: 10% | Z17: 7% | AA17: 8% | AB17: 2% | AC17: 8% | AD17: 6%
B18: Insurance | D18: $12.00 | E18: $9.00 | F18: $16.00 | G18: $19.00 | H18: $25.00 | I18: $17.00 | J18: $20.00 | K18: $14.00 | L18: $5.00 | M18: $14.00 | N18: $5.00 | O18: $2.00 | P18: =SUM(tblExpenses[[#This Row],[JAN]:[DEC]]) -> $158.00 | Q18: 1% | R18: 5% | S18: 4% | T18: 6% | U18: 7% | V18: 10% | W18: 6% | X18: 8% | Y18: 6% | Z18: 2% | AA18: 5% | AB18: 2% | AC18: 1% | AD18: 5%
B19: Taxes (real estate, etc.) | D19: $16.00 | E19: $13.00 | F19: $10.00 | G19: $7.00 | H19: $13.00 | I19: $3.00 | J19: $13.00 | K19: $17.00 | L19: $9.00 | M19: $4.00 | N19: $22.00 | O19: $18.00 | P19: =SUM(tblExpenses[[#This Row],[JAN]:[DEC]]) -> $145.00 | Q19: 14% | R19: 7% | S19: 6% | T19: 4% | U19: 3% | V19: 5% | W19: 1% | X19: 5% | Y19: 7% | Z19: 4% | AA19: 2% | AB19: 7% | AC19: 8% | AD19: 5%
B20: Interest | D20: $3.00 | E20: $2.00 | F20: $19.00 | G20: $21.00 | H20: $13.00 | I20: $9.00 | J20: $7.00 | K20: $13.00 | L20: $3.00 | M20: $6.00 | N20: $10.00 | O20: $13.00 | P20: =SUM(tblExpenses[[#This Row],[JAN]:[DEC]]) -> $119.00 | Q20: 6% | R20: 1% | S20: 1% | T20: 8% | U20: 8% | V20: 5% | W20: 3% | X20: 3% | Y20: 6% | Z20: 1% | AA20: 2% | AB20: 3% | AC20: 6% | AD20: 4%
B21: Depreciation | D21: $8.00 | E21: $7.00 | F21: $6.00 | G21: $7.00 | H21: $7.00 | I21: $6.00 | J21: $15.00 | K21: $23.00 | L21: $21.00 | M21: $16.00 | N21: $19.00 | O21: $7.00 | P21: =SUM(tblExpenses[[#This Row],[JAN]:[DEC]]) -> $142.00 | Q21: 1% | R21: 3% | S21: 3% | T21: 2% | U21: 3% | V21: 3% | W21: 2% | X21: 6% | Y21: 10% | Z21: 9% | AA21: 6% | AB21: 6% | AC21: 3% | AD21: 5%
B22: Other expenses (specify) | D22: $14.00 | E22: $4.00 | F22: $24.00 | G22: $6.00 | H22: $20.00 | I22: $14.00 | J22: $21.00 | K22: $20.00 | L22: $22.00 | M22: $3.00 | N22: $14.00 | O22: $6.00 | P22: =SUM(tblExpenses[[#This Row],[JAN]:[DEC]]) -> $168.00 | Q22: 1% | R22: 6% | S22: 2% | T22: 10% | U22: 2% | V22: 8% | W22: 5% | X22: 8% | Y22: 9% | Z22: 10% | AA22: 1% | AB22: 5% | AC22: 3% | AD22: 6%
B23: Other expenses (specify) | D23: $14.00 | E23: $7.00 | F23: $24.00 | G23: $10.00 | H23: $7.00 | I23: $24.00 | J23: $2.00 | K23: $11.00 | L23: $21.00 | M23: $19.00 | N23: $19.00 | O23: $20.00 | P23: =SUM(tblExpenses[[#This Row],[JAN]:[DEC]]) -> $178.00 | Q23: 1% | R23: 6% | S23: 3% | T23: 10% | U23: 4% | V23: 3% | W23: 9% | X23: 1% | Y23: 5% | Z23: 9% | AA23: 7% | AB23: 6% | AC23: 9% | AD23: 6%
B24: Other expenses (specify) | D24: $11.00 | E24: $8.00 | F24: $25.00 | G24: $11.00 | H24: $9.00 | I24: $24.00 | J24: $13.00 | K24: $14.00 | L24: $19.00 | M24: $24.00 | N24: $15.00 | O24: $7.00 | P24: =SUM(tblExpenses[[#This Row],[JAN]:[DEC]]) -> $180.00 | Q24: 1% | R24: 5% | S24: 4% | T24: 10% | U24: 4% | V24: 4% | W24: 9% | X24: 5% | Y24: 6% | Z24: 8% | AA24: 9% | AB24: 5% | AC24: 3% | AD24: 6%
B25: Misc. (unspecified) | D25: $8.00 | E25: $20.00 | F25: $11.00 | G25: $11.00 | H25: $11.00 | I25: $20.00 | J25: $12.00 | K25: $16.00 | L25: $5.00 | M25: $7.00 | N25: $21.00 | O25: $3.00 | P25: =SUM(tblExpenses[[#This Row],[JAN]:[DEC]]) -> $145.00 | Q25: 2% | R25: 3% | S25: 10% | T25: 4% | U25: 4% | V25: 4% | W25: 7% | X25: 5% | Y25: 7% | Z25: 2% | AA25: 3% | AB25: 7% | AC25: 1% | AD25: 5%
B26: TOTAL EXPENSES | D26: =SUM(D7:D25) -> $236.00 | E26: $205.00 | F26: $249.00 | G26: $261.00 | H26: $257.00 | I26: $274.00 | J26: $266.00 | K26: $235.00 | L26: $230.00 | M26: $259.00 | N26: $296.00 | O26: $231.00 | P26: =SUM(tblExpenses[[#This Row],[JAN]:[DEC]]) -> $2,999.00 | Q26: =SUM(Q7:Q25) -> 100% | R26: =D26/D$26 -> 100% | S26: =E26/E$26 -> 100% | T26: =F26/F$26 -> 100% | U26: =G26/G$26 -> 100% | V26: =H26/H$26 -> 100% | W26: =I26/I$26 -> 100% | X26: =J26/J$26 -> 100% | Y26: =K26/K$26 -> 100% | Z26: =L26/L$26 -> 100% | AA26: =M26/M$26 -> 100% | AB26: =N26/N$26 -> 100% | AC26: =O26/O$26 -> 100% | AD26: =P26/P$26 -> 100%
B27: NET PROFIT | D27: ='Cost of sales'!D15-D26 -> $123.00 | E27: ='Cost of sales'!E15-E26 -> $175.00 | F27: ='Cost of sales'!F15-F26 -> $256.00 | G27: ='Cost of sales'!G15-G26 -> $109.00 | H27: ='Cost of sales'!H15-H26 -> $156.00 | I27: ='Cost of sales'!I15-I26 -> -$8.00 | J27: ='Cost of sales'!J15-J26 -> $32.00 | K27: ='Cost of sales'!K15-K26 -> $214.00 | L27: ='Cost of sales'!L15-L26 -> $100.00 | M27: ='Cost of sales'!M15-M26 -> $148.00 | N27: ='Cost of sales'!N15-N26 -> $179.00 | O27: ='Cost of sales'!O15-O26 -> $359.00 | P27: ='Cost of sales'!P15-P26 -> $1,843.00
